fUSD/lending_fUSD_20260611
["ID","MTS","AMOUNT","RATE_DAILY","PERIOD"]
[424790621,1781166639000,-2031.1463669,0.00015419,2]
[424790631,1781166639000,-6533.64446171,0.000156,2]
[424790625,1781166639000,-6533.64446171,0.000155,2]
[424790624,1781166639000,-2031.1463669,0.00015466,2]
[424790626,1781166639000,-400.0,0.000155,2]
[424790629,1781166639000,-2031.1463669,0.00015555,2]
[424790627,1781166639000,-2031.1463669,0.0001553,2]
[424790628,1781166639000,-1734.62772924,0.00015533,2]
[424790633,1781166639000,-2031.1463669,0.00015664,2]
[424790630,1781166639000,-2031.1463669,0.00015587,2]
[424790634,1781166639000,-248.64616144,0.00015676,2]
[424790632,1781166639000,-400.0,0.000156,2]
[424790635,1781166639000,-2031.1463669,0.00015694,2]
[424790611,1781166639000,-400.0,0.00015,2]
[424790623,1781166639000,-2031.1463669,0.00015448,2]
[424790608,1781166639000,-200.0,0.00015,2]
[424790673,1781166639000,-2031.1463669,0.00016321,2]
[424790606,1781166639000,-400.0,0.00015,2]
[424790636,1781166639000,-2031.1463669,0.00015761,2]
[424790584,1781166639000,-500.0,0.00013699,2]
[424790588,1781166639000,-200.0,0.00014191,2]
[424790585,1781166639000,-500.0,0.00013699,2]
[424790586,1781166639000,-1555.5,0.00013889,2]
[424790587,1781166639000,-250.0,0.00014,2]
[424790589,1781166639000,-928.712754,0.00014284,2]
[424790590,1781166639000,-1613.0535,0.00014437,2]
[424790592,1781166639000,-151.0,0.0001463,2]
[424790591,1781166639000,-1000.0,0.00014516,2]
[424790599,1781166639000,-5800.0,0.00014866,2]
[424790600,1781166639000,-5800.0,0.00014874,2]
[424790593,1781166639000,-151.0,0.0001463,2]
[424790601,1781166639000,-5800.0,0.00014883,2]
[424790594,1781166639000,-168.90688265,0.00014678,2]
[424790597,1781166639000,-5800.0,0.00014849,2]
[424790598,1781166639000,-5800.0,0.00014858,2]
[424790595,1781166639000,-170.2932841,0.00014766,2]
[424790596,1781166639000,-5800.0,0.00014841,2]
[424790603,1781166639000,-5800.0,0.000149,2]
[424790602,1781166639000,-5800.0,0.00014891,2]
[424790604,1781166639000,-1672.7364795,0.00014985,2]
[424790605,1781166639000,-6533.64446171,0.00015,2]
[424790612,1781166639000,-300.0,0.00015,3]
[424790609,1781166639000,-300.0,0.00015,2]
[424790607,1781166639000,-300.0,0.00015,2]
[424790642,1781166639000,-2031.1463669,0.00015933,2]
[424790685,1781166639000,-167.30116669,0.00018,2]
[424790637,1781166639000,-6533.64446171,0.000158,2]
[424790672,1781166639000,-2031.1463669,0.00016293,2]
[424790671,1781166639000,-2031.1463669,0.00016211,2]
[424790675,1781166639000,-6533.64446171,0.000164,2]
[424790674,1781166639000,-2031.1463669,0.00016324,2]
[424790681,1781166639000,-249.0,0.00017349,2]
[424790677,1781166639000,-283.348021,0.00016438,2]
[424790679,1781166639000,-168.90688265,0.00016787,2]
[424790680,1781166639000,-1934.38338736,0.00017177,2]
[424790676,1781166639000,-331.4,0.00016438,2]
[424790678,1781166639000,-1865.36488656,0.00016629,2]
[424790638,1781166639000,-2031.1463669,0.00015896,2]
[424790670,1781166639000,-6533.64446171,0.000162,2]
[424790684,1781166639000,-350.0,0.00018,2]
[424790686,1781166639000,-650.0,0.00018,2]
[424790691,1781166639000,-1242.258,0.00018226,2]
[424790683,1781166639000,-2005.9555727,0.00017725,2]
[424790693,1781166639000,-337.46010947,0.00018257,2]
[424790688,1781166639000,-167.30116669,0.000182,2]
[424790690,1781166639000,-1276.962,0.00018226,2]
[424790687,1781166639000,-10589.39369475,0.00018098,2]
[424790689,1781166639000,-384.0,0.00018226,2]
[424790695,1781166639000,-154.22992786,0.00018273,2]
[424790694,1781166639000,-1143.68,0.00018272,2]
[424790696,1781166639000,-153.0824764,0.00018273,2]
[424790692,1781166639000,-6076.0,0.00018226,2]
[424790669,1781166639000,-297.99,0.000162,2]
[424790682,1781166639000,-200.0,0.00017429,2]
[424790667,1781166639000,-3685.07,0.000162,2]
[424790665,1781166639000,-2031.1463669,0.00016182,2]
[424790643,1781166639000,-2031.1463669,0.00015961,2]
[424790640,1781166639000,-2031.1463669,0.00015914,2]
[424790644,1781166639000,-2031.1463669,0.00015981,2]
[424790641,1781166639000,-2031.1463669,0.00015929,2]
[424790645,1781166639000,-300.0,0.00016,2]
[424790647,1781166639000,-2031.1463669,0.00016026,2]
[424790656,1781166639000,-2031.1463669,0.00016144,2]
[424790648,1781166639000,-2031.1463669,0.00016053,2]
[424790646,1781166639000,-191.99780672,0.00016,2]
[424790649,1781166639000,-2031.1463669,0.00016063,2]
[424790650,1781166639000,-1798.80895522,0.00016081,2]
[424790639,1781166639000,-6533.64446171,0.000159,2]
[424790652,1781166639000,-2031.1463669,0.00016096,2]
[424790653,1781166639000,-6533.64446171,0.000161,2]
[424790668,1781166639000,-12942.03,0.000162,2]
[424790664,1781166639000,-2031.1463669,0.00016165,2]
[424790662,1781166639000,-2031.1463669,0.00016162,2]
[424790666,1781166639000,-2031.1463669,0.00016185,2]
[424790663,1781166639000,-2031.1463669,0.00016162,2]
[424790658,1781166639000,-2031.1463669,0.00016158,2]
[424790654,1781166639000,-2031.1463669,0.00016118,2]
[424790651,1781166639000,-2031.1463669,0.00016085,2]
[424790655,1781166639000,-2031.1463669,0.00016118,2]
[424790659,1781166639000,-2031.1463669,0.00016158,2]
[424790723,1781166640000,-483.14966213,0.00018273,2]
[424790742,1781166640000,-1050.42526909,0.00018273,2]
[424790726,1781166640000,-151.0,0.00018273,2]
[424790731,1781166640000,-9552.16786547,0.00018273,2]
[424790733,1781166640000,-1000.0,0.00018273,2]
[424790735,1781166640000,-151.0,0.00018273,2]
[424790745,1781166640000,-500.0,0.00018273,2]
[424790746,1781166640000,-151.0,0.00018273,2]
[424790739,1781166640000,-364.12528585,0.00018273,2]
[424790737,1781166640000,-151.0,0.00018273,2]
[424790744,1781166640000,-500.0,0.00018273,2]
[424790749,1781166640000,-721.12765534,0.00018273,2]
[424790740,1781166640000,-1428.38747117,0.00018273,2]
[424790748,1781166640000,-1481.2378076,0.00018273,2]
[424790758,1781166640000,-500.0,0.00018273,2]
[424790752,1781166640000,-500.0,0.00018273,2]
[424790753,1781166640000,-500.0,0.00018273,2]
[424790747,1781166640000,-151.0,0.00018273,2]
[424790755,1781166640000,-151.0,0.00018273,2]
[424790756,1781166640000,-1536.04360648,0.00018273,2]
[424790754,1781166640000,-151.0,0.00018273,2]
[424790757,1781166640000,-152.0,0.00018273,2]
[424790724,1781166640000,-209.40437684,0.00018273,2]
[424790729,1781166640000,-1377.42282658,0.00018273,2]
[424790720,1781166640000,-151.0,0.00018273,2]
[424790760,1781166640000,-500.0,0.00018273,2]
[424790717,1781166640000,-151.0,0.00018273,2]
[424790697,1781166640000,-153.80113636,0.00018273,2]
[424790698,1781166640000,-154.12265554,0.00018273,2]
[424790699,1781166640000,-1030.0,0.00018273,2]
[424790700,1781166640000,-151.0,0.00018273,2]
[424790701,1781166640000,-1068.11,0.00018273,2]
[424790703,1781166640000,-151.0,0.00018273,2]
[424790702,1781166640000,-200.0,0.00018273,2]
[424790708,1781166640000,-1148.61238259,0.00018273,2]
[424790705,1781166640000,-209.40437684,0.00018273,2]
[424790709,1781166640000,-578.20924308,0.00018273,2]
[424790710,1781166640000,-151.0,0.00018273,2]
[424790707,1781166640000,-235.07905142,0.00018273,2]
[424790711,1781166640000,-1191.11104074,0.00018273,2]
[424790713,1781166640000,-1235.18214925,0.00018273,2]
[424790712,1781166640000,-151.0,0.00018273,2]
[424790714,1781166640000,-151.0,0.00018273,2]
[424790706,1781166640000,-151.0,0.00018273,2]
[424790716,1781166640000,-174.61919141,0.00018273,2]
[424790718,1781166640000,-209.40437684,0.00018273,2]
[424790725,1781166640000,-2080.17592889,0.00018273,2]
[424790722,1781166640000,-1328.27659266,0.00018273,2]
[424790727,1781166640000,-151.0,0.00018273,2]
[424790719,1781166640000,-1280.88388877,0.00018273,2]
[424790721,1781166640000,-151.0,0.00018273,2]
[424790759,1781166640000,-151.0,0.00018273,2]
[424790704,1781166640000,-1107.63007,0.00018273,2]
[424790762,1781166640000,-1592.87721992,0.00018273,2]
[424790793,1781166640000,-500.0,0.00018273,2]
[424790800,1781166640000,-152.0,0.00018273,2]
[424790791,1781166640000,-151.0,0.00018273,2]
[424790792,1781166640000,-152.0,0.00018273,2]
[424790801,1781166640000,-151.0,0.00018273,2]
[424790796,1781166640000,-1980.8648231,0.00018273,2]
[424790794,1781166640000,-151.0,0.00018273,2]
[424790795,1781166640000,-500.0,0.00018273,2]
[424790797,1781166640000,-151.0,0.00018273,2]
[424790799,1781166640000,-500.0,0.00018273,2]
[424790802,1781166640000,-500.0,0.00018273,2]
[424790787,1781166640000,-500.0,0.00018273,2]
[424790804,1781166640000,-500.0,0.00018273,2]
[424790805,1781166640000,-151.0,0.00018273,2]
[424790803,1781166640000,-2054.15682156,0.00018273,2]
[424790807,1781166640000,-152.0,0.00018273,2]
[424790808,1781166640000,-500.0,0.00018273,2]
[424790813,1781166640000,-1125.0,0.00018277,2]
[424790815,1781166640000,-151.0,0.00018328,2]
[424790811,1781166640000,-152.0,0.00018273,2]
[424790812,1781166640000,-152.0,0.00018273,2]
[424790810,1781166640000,-152.0,0.00018273,2]
[424790809,1781166640000,-151.0,0.00018273,2]
[424790814,1781166640000,-235.07905142,0.00018328,2]
[424790806,1781166640000,-151.0,0.00018273,2]
[424790790,1781166640000,-1910.18787185,0.00018273,2]
[424790761,1781166640000,-151.0,0.00018273,2]
[424790785,1781166640000,-151.0,0.00018273,2]
[424790765,1781166640000,-151.0,0.00018273,2]
[424790764,1781166640000,-500.0,0.00018273,2]
[424790763,1781166640000,-152.0,0.00018273,2]
[424790769,1781166640000,-152.0,0.00018273,2]
[424790766,1781166640000,-500.0,0.00018273,2]
[424790767,1781166640000,-151.0,0.00018273,2]
[424790789,1781166640000,-500.0,0.00018273,2]
[424790771,1781166640000,-151.0,0.00018273,2]
[424790770,1781166640000,-500.0,0.00018273,2]
[424790773,1781166640000,-151.0,0.00018273,2]
[424790775,1781166640000,-152.0,0.00018273,2]
[424790772,1781166640000,-500.0,0.00018273,2]
[424790768,1781166640000,-1651.81367706,0.00018273,2]
[424790776,1781166640000,-500.0,0.00018273,2]
[424790777,1781166640000,-151.0,0.00018273,2]
[424790778,1781166640000,-500.0,0.00018273,2]
[424790779,1781166640000,-1776.30922209,0.00018273,2]
[424790781,1781166640000,-500.0,0.00018273,2]
[424790780,1781166640000,-151.0,0.00018273,2]
[424790782,1781166640000,-151.0,0.00018273,2]
[424790784,1781166640000,-1842.0326633,0.00018273,2]
[424790786,1781166640000,-152.0,0.00018273,2]
[424790783,1781166640000,-500.0,0.00018273,2]
[424790788,1781166640000,-151.0,0.00018273,2]
[424790774,1781166640000,-1712.93078311,0.00018273,2]
[424790857,1781166641000,-151.0,0.00019369,2]
[424790853,1781166641000,-154.12265554,0.00019369,2]
[424790848,1781166641000,-302.0,0.00018852,5]
[424790849,1781166641000,-160.93281423,0.00019178,2]
[424790843,1781166641000,-741.39054701,0.00018821,2]
[424790852,1781166641000,-100000.0,0.00019339,7]
[424790850,1781166641000,-1125.0,0.00019238,2]
[424790847,1781166641000,-631.0,0.00018852,5]
[424790846,1781166641000,-151.0,0.00018823,2]
[424790851,1781166641000,-650.0,0.00019253,3]
[424790854,1781166641000,-200.0,0.00019369,2]
[424790866,1781166641000,-200.0,0.00019917,2]
[424790856,1781166641000,-187.78006524,0.00019369,2]
[424790859,1781166641000,-2236.95670847,0.00019369,2]
[424790861,1781166641000,-215.95576085,0.000194,7]
[424790858,1781166641000,-151.0,0.00019369,2]
[424790860,1781166641000,-225.18697532,0.00019369,2]
[424790863,1781166641000,-217.15233878,0.00019642,2]
[424790867,1781166641000,-301.97470022,0.00019917,2]
[424790862,1781166641000,-153.80113636,0.00019642,2]
[424790864,1781166641000,-650.0,0.00019879,3]
[424790865,1781166641000,-154.12265554,0.00019917,2]
[424790868,1781166641000,-194.72792766,0.00019917,2]
[424790845,1781166641000,-235.07905159,0.00018823,2]
[424790855,1781166641000,-225.18697532,0.00019369,2]
[424790838,1781166641000,-217.15233878,0.00018821,2]
[424790828,1781166641000,-151.0,0.00018603,2]
[424790844,1781166641000,-2157.14243826,0.00018821,2]
[424790869,1781166641000,-151.0,0.00019917,2]
[424790816,1781166641000,-235.07905142,0.00018383,2]
[424790818,1781166641000,-291.68937477,0.00018394,2]
[424790817,1781166641000,-151.0,0.00018383,2]
[424790819,1781166641000,-331.4,0.0001841,2]
[424790820,1781166641000,-235.07905142,0.00018438,2]
[424790823,1781166641000,-235.07905142,0.00018493,2]
[424790821,1781166641000,-151.0,0.00018438,2]
[424790824,1781166641000,-151.0,0.00018493,2]
[424790826,1781166641000,-151.0,0.00018548,2]
[424790836,1781166641000,-154.12265554,0.00018821,2]
[424790841,1781166641000,-217.15233878,0.00018821,2]
[424790830,1781166641000,-235.07905142,0.00018658,2]
[424790832,1781166641000,-235.07905142,0.00018713,2]
[424790829,1781166641000,-650.0,0.00018626,2]
[424790827,1781166641000,-235.07905142,0.00018603,2]
[424790831,1781166641000,-151.0,0.00018658,2]
[424790833,1781166641000,-151.0,0.00018713,2]
[424790835,1781166641000,-151.0,0.00018768,2]
[424790834,1781166641000,-235.07905142,0.00018768,2]
[424790837,1781166641000,-200.0,0.00018821,2]
[424790842,1781166641000,-151.0,0.00018821,2]
[424790839,1781166641000,-181.08010149,0.00018821,2]
[424790840,1781166641000,-151.0,0.00018821,2]
[424790825,1781166641000,-235.07905142,0.00018548,2]
[424790870,1781166641000,-151.0,0.00019917,2]
[424790873,1781166641000,-400.0,0.0002,2]
[424790927,1781166641000,-151.0,0.00021012,2]
[424790898,1781166641000,-151.0,0.00020465,2]
[424790904,1781166641000,-170.29328407,0.00020555,2]
[424790914,1781166641000,-251.0,0.00021,2]
[424790905,1781166641000,-661.72841598,0.000206,2]
[424790903,1781166641000,-650.0,0.00020505,4]
[424790906,1781166641000,-661.72841598,0.000208,2]
[424790907,1781166641000,-15000.0,0.00021,2]
[424790910,1781166641000,-6111.0,0.00021,2]
[424790912,1781166641000,-342.0,0.00021,2]
[424790908,1781166641000,-6111.0,0.00021,2]
[424790911,1781166641000,-310.0,0.00021,2]
[424790913,1781166641000,-1066.0,0.00021,2]
[424790915,1781166641000,-441.0,0.00021,2]
[424790917,1781166641000,-313.0,0.00021,2]
[424790919,1781166641000,-990.0,0.00021,2]
[424790918,1781166641000,-262.0,0.00021,2]
[424790920,1781166641000,-1461.0,0.00021,2]
[424790924,1781166641000,-153.80113636,0.00021011,2]
[424790923,1781166641000,-838.0,0.00021,2]
[424790925,1781166641000,-198.08368006,0.00021011,2]
[424790926,1781166641000,-599.60298507,0.00021012,2]
[424790922,1781166641000,-185.0,0.00021,2]
[424790916,1781166641000,-246.0,0.00021,2]
[424790921,1781166641000,-319.0,0.00021,2]
[424790876,1781166641000,-342.0,0.0002,2]
[424790899,1781166641000,-201.93286098,0.00020465,2]
[424790901,1781166641000,-2405.55389863,0.00020465,2]
[424790909,1781166641000,-15000.0,0.00021,2]
[424790900,1781166641000,-151.0,0.00020465,2]
[424790896,1781166641000,-154.12265554,0.00020465,2]
[424790874,1781166641000,-310.0,0.0002,2]
[424790877,1781166641000,-1066.0,0.0002,2]
[424790878,1781166641000,-251.0,0.0002,2]
[424790875,1781166641000,-661.72841598,0.0002,2]
[424790872,1781166641000,-233.5188934,0.00019917,2]
[424790879,1781166641000,-441.0,0.0002,2]
[424790881,1781166641000,-313.0,0.0002,2]
[424790880,1781166641000,-246.0,0.0002,2]
[424790883,1781166641000,-200.0,0.0002,10]
[424790882,1781166641000,-262.0,0.0002,2]
[424790884,1781166641000,-990.0,0.0002,2]
[424790886,1781166641000,-5228.08,0.0002,2]
[424790871,1781166641000,-2319.72410669,0.00019917,2]
[424790888,1781166641000,-185.0,0.0002,2]
[424790885,1781166641000,-1461.0,0.0002,2]
[424790892,1781166641000,-661.72841598,0.000202,2]
[424790895,1781166641000,-661.72841598,0.000204,2]
[424790891,1781166641000,-300.0,0.000201,10]
[424790893,1781166641000,-1125.0,0.00020251,2]
[424790897,1781166641000,-200.0,0.00020465,2]
[424790902,1781166641000,-242.15909246,0.00020465,2]
[424790890,1781166641000,-838.0,0.0002,2]
[424790889,1781166641000,-1066.0,0.0002,2]
[424790887,1781166641000,-319.0,0.0002,2]
[424790894,1781166641000,-331.4,0.00020381,2]
[424790967,1781166642000,-262.0,0.00022,2]
[424790964,1781166642000,-246.0,0.00022,2]
[424790963,1781166642000,-441.0,0.00022,2]
[424790955,1781166642000,-5000.0,0.00021918,2]
[424790962,1781166642000,-251.0,0.00022,2]
[424790965,1781166642000,-284.91992931,0.00022,10]
[424790960,1781166642000,-342.0,0.00022,2]
[424790958,1781166642000,-450.0,0.00022,2]
[424790959,1781166642000,-310.0,0.00022,2]
[424790966,1781166642000,-313.0,0.00022,2]
[424790961,1781166642000,-1066.0,0.00022,2]
[424790970,1781166642000,-319.0,0.00022,2]
[424790974,1781166642000,-250.76960971,0.00022109,2]
[424790968,1781166642000,-990.0,0.00022,2]
[424790972,1781166642000,-154.12265554,0.00022109,2]
[424790973,1781166642000,-283.34429458,0.00022109,2]
[424790971,1781166642000,-185.0,0.00022,2]
[424790975,1781166642000,-225.18697532,0.00022109,2]
[424790976,1781166642000,-151.0,0.00022109,2]
[424790977,1781166642000,-270.04556521,0.00022109,2]
[424790981,1781166642000,-908.0,0.00022191,7]
[424790978,1781166642000,-2682.57183977,0.00022109,2]
[424790979,1781166642000,-500.0,0.00022191,7]
[424790957,1781166642000,-10000.0,0.00022,10]
[424790969,1781166642000,-1461.0,0.00022,2]
[424790953,1781166642000,-162.01362747,0.00021917,2]
[424790980,1781166642000,-500.0,0.00022191,7]
[424790954,1781166642000,-1143.68,0.00021917,2]
[424790928,1781166642000,-747.80937859,0.00021012,2]
[424790929,1781166642000,-154.12265554,0.00021013,2]
[424790930,1781166642000,-200.0,0.00021013,2]
[424790931,1781166642000,-151.0,0.00021013,2]
[424790934,1781166642000,-251.11897888,0.00021013,2]
[424790932,1781166642000,-209.40437684,0.00021013,2]
[424790936,1781166642000,-2504.78,0.00021087,2]
[424790935,1781166642000,-2494.55939288,0.00021013,2]
[424790933,1781166642000,-151.0,0.00021013,2]
[424790937,1781166642000,-650.0,0.00021131,4]
[424790940,1781166642000,-1227.0,0.00021226,2]
[424790938,1781166642000,-382.0,0.00021226,2]
[424790939,1781166642000,-1274.0,0.00021226,2]
[424790942,1781166642000,-1125.0,0.00021264,2]
[424790947,1781166642000,-151.0,0.00021561,2]
[424790945,1781166642000,-151.0,0.00021561,2]
[424790941,1781166642000,-6076.0,0.00021226,2]
[424790943,1781166642000,-154.12265554,0.00021561,2]
[424790946,1781166642000,-217.15233878,0.00021561,2]
[424790948,1781166642000,-260.4103811,0.00021561,2]
[424790944,1781166642000,-200.0,0.00021561,2]
[424790950,1781166642000,-5228.08,0.00021673,2]
[424790949,1781166642000,-2586.85809042,0.00021561,2]
[424790951,1781166642000,-650.0,0.00021758,5]
[424790952,1781166642000,-197.4,0.000218,7]
[424790956,1781166642000,-150.0,0.00021918,2]
[424790982,1781166642000,-165.06322829,0.00022327,2]
[424791041,1781166642000,-2991.49051684,0.00023753,2]
[424790994,1781166642000,-491.06,0.000226,7]
[424791012,1781166642000,-316.0,0.00023,2]
[424791017,1781166642000,-319.0,0.00023,2]
[424791013,1781166642000,-990.0,0.00023,2]
[424791024,1781166642000,-500.0,0.00023013,7]
[424791021,1781166642000,-615.0,0.00023,2]
[424791023,1781166642000,-500.0,0.00023013,7]
[424791027,1781166642000,-150.0,0.00023014,2]
[424791020,1781166642000,-185.0,0.00023,2]
[424791025,1781166642000,-500.0,0.00023013,7]
[424791030,1781166642000,-242.15909246,0.00023205,2]
[424791026,1781166642000,-500.0,0.00023013,7]
[424791015,1781166642000,-1461.0,0.00023,2]
[424791028,1781166642000,-154.12265568,0.00023205,2]
[424791039,1781166642000,-151.0,0.00023753,2]
[424791034,1781166642000,-650.0,0.00023636,7]
[424791036,1781166642000,-621.78829552,0.00023751,2]
[424791032,1781166642000,-5228.08,0.00023347,7]
[424791033,1781166642000,-719.25351747,0.00023529,2]
[424791037,1781166642000,-151.0,0.00023751,2]
[424791031,1781166642000,-2884.75459676,0.00023205,2]
[424791038,1781166642000,-775.4783256,0.00023751,2]
[424791040,1781166642000,-251.11897888,0.00023753,2]
[424791035,1781166642000,-491.06,0.000237,7]
[424790985,1781166642000,-331.4,0.00022353,2]
[424791029,1781166642000,-151.0,0.00023205,2]
[424791014,1781166642000,-200.0,0.00023,2]
[424791022,1781166642000,-650.0,0.0002301,6]
[424791019,1781166642000,-1000.0,0.00023,2]
[424791011,1781166642000,-262.0,0.00023,2]
[424790987,1781166642000,-153.80113636,0.0002238,2]
[424790983,1781166642000,-298.5,0.00022349,2]
[424790992,1781166642000,-100000.0,0.00022562,7]
[424790989,1781166642000,-500.0,0.00022465,7]
[424790996,1781166642000,-154.12265554,0.00022657,2]
[424790988,1781166642000,-650.0,0.00022384,6]
[424790990,1781166642000,-500.0,0.00022465,7]
[424790991,1781166642000,-576.0,0.00022465,7]
[424790998,1781166642000,-151.0,0.00022657,2]
[424791007,1781166642000,-251.0,0.00023,2]
[424790999,1781166642000,-2781.82699784,0.00022657,2]
[424790997,1781166642000,-233.5188934,0.00022657,2]
[424790995,1781166642000,-1089.0,0.00022608,7]
[424791016,1781166642000,-309.0,0.00023,2]
[424791000,1781166642000,-232.168188,0.00022672,7]
[424791001,1781166642000,-500.0,0.00022739,7]
[424791003,1781166642000,-576.0,0.00022739,7]
[424791004,1781166642000,-310.0,0.00023,2]
[424791002,1781166642000,-500.0,0.00022739,7]
[424791005,1781166642000,-342.0,0.00023,2]
[424791008,1781166642000,-441.0,0.00023,2]
[424791018,1781166642000,-1000.0747816,0.00023,30]
[424791009,1781166642000,-246.0,0.00023,2]
[424791010,1781166642000,-313.0,0.00023,2]
[424791006,1781166642000,-1066.0,0.00023,2]
[424791079,1781166643000,-278.0,0.00025,2]
[424791080,1781166643000,-990.0,0.00025,2]
[424791078,1781166643000,-317.0,0.00025,2]
[424791070,1781166643000,-491.06,0.000249,7]
[424791068,1781166643000,-270.0455652,0.00024849,2]
[424791072,1781166643000,-342.0,0.00025,2]
[424791071,1781166643000,-320.0,0.00025,2]
[424791075,1781166643000,-253.0,0.00025,2]
[424791067,1781166643000,-170.46,0.00024658,2]
[424791081,1781166643000,-1473.0,0.00025,2]
[424791073,1781166643000,-1069.96266565,0.00025,2]
[424791082,1781166643000,-329.0,0.00025,2]
[424791090,1781166643000,-150.0,0.00025373,2]
[424791083,1781166643000,-193.0,0.00025,2]
[424791086,1781166643000,-150.0,0.00025329,2]
[424791087,1781166643000,-930.56969256,0.00025329,2]
[424791084,1781166643000,-5228.08,0.0002502,7]
[424791088,1781166643000,-150.0,0.00025329,2]
[424791089,1781166643000,-439.24814526,0.00025329,2]
[424791092,1781166643000,-650.0,0.00025515,9]
[424791095,1781166643000,-491.06,0.000258,7]
[424791094,1781166643000,-100000.0,0.00025786,7]
[424791097,1781166643000,-162.0,0.00025924,2]
[424791093,1781166643000,-1143.68,0.00025785,2]
[424791085,1781166643000,-491.06,0.000252,7]
[424791069,1781166643000,-650.0,0.00024889,8]
[424791043,1781166643000,-310.0,0.00024,2]
[424791077,1781166643000,-258.0,0.00025,2]
[424791042,1781166643000,-500.0,0.00024,2]
[424791044,1781166643000,-342.0,0.00024,2]
[424791053,1781166643000,-319.0,0.00024,2]
[424791050,1781166643000,-262.0,0.00024,2]
[424791047,1781166643000,-441.0,0.00024,2]
[424791049,1781166643000,-313.0,0.00024,2]
[424791046,1781166643000,-251.0,0.00024,2]
[424791045,1781166643000,-1066.0,0.00024,2]
[424791051,1781166643000,-990.0,0.00024,2]
[424791048,1781166643000,-246.0,0.00024,2]
[424791052,1781166643000,-1461.0,0.00024,2]
[424791065,1781166643000,-284.32971553,0.00024657,2]
[424791054,1781166643000,-215.39627068,0.00024,2]
[424791057,1781166643000,-188.8340614,0.00024225,2]
[424791060,1781166643000,-1227.0,0.00024226,2]
[424791058,1781166643000,-382.0,0.00024226,2]
[424791063,1781166643000,-260.4103811,0.00024301,2]
[424791062,1781166643000,-650.0,0.00024263,7]
[424791061,1781166643000,-6076.0,0.00024226,2]
[424791059,1781166643000,-1274.0,0.00024226,2]
[424791055,1781166643000,-185.0,0.00024,2]
[424791064,1781166643000,-331.4,0.00024324,2]
[424791066,1781166643000,-1000.0,0.00024658,2]
[424791076,1781166643000,-459.0,0.00025,2]
[424791056,1781166643000,-150.0,0.00024164,2]
[424791091,1781166643000,-407.24794706,0.00025397,2]
[424791102,1781166643000,-150.0,0.00026088,4]
[424791099,1781166643000,-230.46205147,0.00026,2]
[424791127,1781166643000,-500.0,0.00027124,2]
[424791129,1781166643000,-150.0,0.00027124,2]
[424791133,1781166643000,-500.0,0.00027124,2]
[424791143,1781166643000,-500.0,0.00027124,2]
[424791132,1781166643000,-500.0,0.00027124,2]
[424791135,1781166643000,-500.0,0.00027124,2]
[424791134,1781166643000,-500.0,0.00027124,2]
[424791141,1781166643000,-500.0,0.00027124,2]
[424791140,1781166643000,-500.0,0.00027124,2]
[424791136,1781166643000,-500.0,0.00027124,2]
[424791142,1781166643000,-500.0,0.00027124,2]
[424791130,1781166643000,-500.0,0.00027124,2]
[424791139,1781166643000,-500.0,0.00027124,2]
[424791145,1781166643000,-500.0,0.00027124,2]
[424791144,1781166643000,-500.0,0.00027124,2]